bitfinex/quotes_SOLUSD_20250817
["timestamp","ask_amount","ask_price","bid_price","bid_amount"]
[1755458191325,0.06,193.03,193.02,11.20312314]
[1755458192609,0.06,193.03,193.02,26.68933871]
[1755458193336,0.06,193.03,193.02,26.30933871]
[1755458193926,0.06,193.05,193.02,26.30933871]
[1755458194124,0.06,193.07,193.04,45.05367844]
[1755458194315,0.06,193.07,193.03,38.02]
[1755458194316,0.06,193.07,193.06,29.94746287]
[1755458195117,0.74,193.07,193.06,69.64209787]
[1755458195427,0.74,193.07,193.06,41.56746287]
[1755458197540,0.06,193.07,193.06,41.56746287]
[1755458197944,0.06,193.07,193.06,46.74673687]
[1755458198447,0.06,193.07,193.06,42.799274]
[1755458198652,0.74,193.07,193.06,41.56746287]
[1755458200922,0.06,193.07,193.06,47.12719973]
[1755458201124,0.06,193.07,193.06,62.75138898]
[1755458201426,0.06,193.09,193.08,26.0]
[1755458201751,0.06,193.09,193.08,86.60114131]
[1755458202047,0.06,193.09,193.08,83.03367844]
[1755458202542,0.06,193.09,193.08,87.83287877]
[1755458202760,0.06,193.09,193.08,92.16034164]
[1755458202933,0.06,193.11,193.08,92.67826167]
[1755458203140,0.06,193.11,193.1,19.05367844]
[1755458203341,0.06,193.11,193.1,56.65367844]
[1755458203541,0.06,193.11,193.1,57.03367844]
[1755458204462,0.06,193.13,193.12,41.10621557]
[1755458204661,0.68,193.19,193.14,46.28380695]
[1755458204870,0.68,193.19,193.14,87.81126982]
[1755458205423,0.72,193.15,193.14,29.94746287]
[1755458205652,0.72,193.15,193.14,70.22725187]
[1755458205858,0.72,193.15,193.14,67.52746287]
[1755458207330,0.06,193.15,193.14,67.52746287]
[1755458208648,0.72,193.15,193.14,63.58]
[1755458208849,0.72,193.15,193.14,67.52746287]
[1755458209349,0.72,193.15,193.14,63.58]
[1755458209653,0.72,193.15,193.14,67.52746287]
[1755458212023,0.72,193.15,193.14,63.58]
[1755458212276,0.72,193.15,193.14,67.52746287]
[1755458213628,0.06,193.15,193.14,67.52746287]
[1755458214157,0.06,193.15,193.14,63.58]
[1755458214365,0.06,193.15,193.14,67.52746287]
[1755458214736,0.72,193.15,193.14,67.52746287]
[1755458215427,0.06,193.15,193.14,67.52746287]
[1755458217634,0.72,193.15,193.14,67.52746287]
[1755458217830,0.72,193.15,193.14,63.58]
[1755458218050,0.72,193.15,193.14,67.52746287]
[1755458219873,0.72,193.15,193.13,0.03]
[1755458219874,5.89732332,193.15,193.13,0.03]
[1755458220048,3.94746287,193.14,193.13,0.03]
[1755458220250,4.60746287,193.14,193.13,0.03]
[1755458220773,4.60746287,193.14,193.09,3.94746287]
[1755458220774,0.66,193.14,193.1,37.52]
[1755458220950,4.60746287,193.13,193.1,37.52]
[1755458221138,3.94746287,193.13,193.1,37.52]
[1755458221339,4.60746287,193.12,193.09,0.03]
[1755458221578,3.94746287,193.1,193.09,0.03]
[1755458221872,5.1786639,193.1,193.09,0.03]
[1755458222071,9.78612677,193.1,193.09,0.03]
[1755458225073,5.8386639,193.1,193.09,0.03]
[1755458225382,5.17845032,193.11,193.09,3.97746287]
[1755458225588,5.17845032,193.11,193.1,3.94746287]
[1755458225750,5.83845032,193.11,193.1,3.94746287]
[1755458226078,5.17820066,193.12,193.1,3.94746287]
[1755458226271,5.17820066,193.12,193.11,3.94746287]
[1755458227453,7.8785481,193.13,193.11,3.94746287]
[1755458227651,2.70063733,193.13,193.12,3.94746287]
[1755458228560,3.36063733,193.13,193.12,3.94746287]
[1755458229076,2.70063733,193.13,193.12,3.94746287]
[1755458231178,2.70063733,193.13,193.1,37.5]
[1755458231363,2.70063733,193.13,193.12,3.94746287]
[1755458233963,2.70063733,193.13,193.12,29.94746287]
[1755458234156,2.70063733,193.13,193.12,30.35746287]
[1755458234350,2.70063733,193.13,193.12,29.94746287]
[1755458235379,2.70063733,193.13,193.12,35.53559045]
[1755458236258,2.70063733,193.13,193.12,35.12559045]
[1755458236771,2.70063733,193.13,193.12,31.17812758]
[1755458236978,2.70063733,193.13,193.12,35.12559045]
[1755458237300,2.70063733,193.13,193.12,29.94746287]
[1755458239868,2.70063733,193.13,193.12,35.12559045]
[1755458240488,2.70063733,193.13,193.12,72.58559045]
[1755458241359,0.06,193.15,193.12,72.99559045]
[1755458241591,0.06,193.15,193.14,3.94746287]
[1755458241792,0.06,193.15,193.14,41.38746287]
[1755458242881,0.06,193.15,193.14,37.44]
[1755458243057,0.06,193.15,193.14,41.38746287]
[1755458243259,0.06,193.15,193.14,46.97505425]
[1755458243875,0.06,193.15,193.14,62.08126982]
[1755458244278,0.06,193.15,193.14,58.13380695]
[1755458244592,0.78,193.15,193.14,41.38746287]
[1755458245667,0.78,193.15,193.14,37.44]
[1755458245988,0.78,193.15,193.14,41.38746287]
[1755458246788,0.78,193.15,193.14,41.36746287]
[1755458247895,0.06,193.15,193.14,41.36746287]
[1755458248072,0.06,193.15,193.14,46.54505425]
[1755458248397,0.06,193.15,193.14,62.06126982]
[1755458248570,0.06,193.15,193.14,61.65126982]
[1755458248763,0.78,193.15,193.13,26.0]
[1755458248959,0.06,193.15,193.14,3.94746287]
[1755458249158,0.06,193.15,193.14,41.36746287]
[1755458249565,0.78,193.15,193.14,41.36746287]
[1755458249768,0.06,193.15,193.14,41.36746287]
[1755458252164,0.78,193.15,193.14,41.36746287]
[1755458252374,0.06,193.15,193.14,41.36746287]
[1755458253990,0.78,193.15,193.14,41.36746287]
[1755458255492,0.06,193.15,193.14,41.36746287]
[1755458257970,0.06,193.15,193.14,37.42]
[1755458258271,0.06,193.15,193.14,41.36746287]
[1755458259864,0.06,193.15,193.14,37.42]
[1755458260067,0.78,193.15,193.14,41.36746287]
[1755458261078,0.78,193.15,193.14,37.42]
[1755458261785,5.17759138,193.14,193.13,0.03]
[1755458262096,9.12505425,193.14,193.13,0.03]
[1755458262304,9.84505425,193.14,193.13,0.03]
[1755458262473,5.89759138,193.14,193.13,0.03]
[1755458265708,9.84505425,193.14,193.13,0.03]
[1755458265908,17.17552241,193.14,193.12,0.03]
[1755458266220,11.95793103,193.13,193.12,0.03]
[1755458266585,11.27793103,193.13,193.12,0.03]
[1755458266884,17.1357905,193.13,193.11,0.03]
[1755458267081,11.95791339,193.12,193.1,0.03]
[1755458267306,37.27764953,193.11,193.1,0.03]
[1755458267477,8.01018666,193.11,193.1,0.03]
[1755458267681,3.46742924,193.12,193.1,3.97746287]
[1755458267909,5.85785947,193.13,193.11,3.94746287]
[1755458268201,9.32528871,193.13,193.12,3.94746287]
[1755458268407,5.17785947,193.13,193.12,3.94746287]
[1755458268610,8.64528871,193.13,193.11,3.94746287]
[1755458268818,5.17785947,193.13,193.11,3.94746287]
[1755458268986,0.68,193.12,193.11,3.94746287]
[1755458269188,0.68,193.12,193.1,0.03]
[1755458269383,8.64528871,193.13,193.11,3.94746287]
[1755458269588,5.17785947,193.13,193.11,3.94746287]
[1755458269795,8.64528871,193.13,193.11,3.94746287]
[1755458270005,5.85812758,193.12,193.11,3.94746287]
[1755458270209,5.85812758,193.12,193.1,0.03]
[1755458270414,5.17812758,193.12,193.1,3.97746287]
[1755458270620,11.95937082,193.11,193.1,0.03]
[1755458270931,11.95941178,193.11,193.1,0.03]
[1755458271522,26.0,193.1,193.08,0.03]
[1755458271712,11.27775776,193.09,193.08,0.03]
[1755458272020,17.13668986,193.09,193.08,0.03]
[1755458272194,17.13668986,193.09,193.08,1e-08]
[1755458273508,17.13451795,193.09,193.08,1e-08]
[1755458275000,149.63451795,193.09,193.08,1e-08]
[1755458275318,145.77382421,193.09,193.08,1e-08]
[1755458276724,148.47509975,193.09,193.08,1e-08]
[1755458280704,140.38020764,193.09,193.08,1e-08]
[1755458281014,141.06020764,193.09,193.08,1e-08]
[1755458281417,140.38020764,193.09,193.08,1e-08]
[1755458281613,7.88020764,193.09,193.08,3.94746288]
[1755458282002,8.56020764,193.09,193.08,1e-08]
[1755458285201,12.50767051,193.09,193.08,1e-08]
[1755458288526,7.88020764,193.09,193.08,1e-08]
[1755458301456,8.54020764,193.09,193.08,1e-08]
[1755458302247,12.48767051,193.09,193.08,1e-08]
[1755458302466,15.96222749,193.09,193.08,1e-08]
[1755458304337,19.82577629,193.09,193.08,1e-08]
[1755458304534,12.01476462,193.09,193.08,1e-08]
[1755458304734,15.96222749,193.09,193.08,1e-08]
[1755458305243,19.82791586,193.09,193.08,1e-08]
[1755458306060,15.96222749,193.09,193.08,1e-08]
[1755458306262,19.82791586,193.09,193.08,1e-08]
[1755458307739,19.82791586,193.09,193.06,0.03]
[1755458307943,3.94746287,193.07,193.06,0.03]
[1755458308251,143.78770822,193.07,193.06,0.03]
[1755458308450,144.44770822,193.07,193.06,0.03]
[1755458308663,162.25552541,193.07,193.06,1e-08]
[1755458309160,167.43499399,193.07,193.06,1e-08]
[1755458311565,147.60621557,193.06,193.04,1e-08]
[1755458311866,63.63392379,193.05,193.04,1e-08]
[1755458312063,15.10621557,193.03,193.02,1e-08]
[1755458312268,63.63392379,193.03,193.02,1e-08]
[1755458312449,65.5270028,193.03,193.02,1e-08]
[1755458312658,69.47446567,193.03,193.02,1e-08]
[1755458313380,26.0,193.01,193.0,1e-08]
[1755458313545,90.93026506,193.01,193.0,1e-08]
[1755458313955,91.59026506,193.01,192.97,0.03]
[1755458314173,3.94746287,192.98,192.97,0.03]
[1755458314371,41.10568837,192.98,192.97,0.03]
[1755458314574,49.76212948,192.98,192.97,0.03]
[1755458315382,49.75615769,192.98,192.97,0.03]
[1755458315768,45.89644111,192.98,192.97,0.03]
[1755458316777,49.84390398,192.98,192.97,0.03]
[1755458316955,50.50390398,192.98,192.97,0.03]
[1755458317359,50.50390398,192.98,192.96,0.03]
[1755458317576,4.60746287,192.97,192.96,0.03]
[1755458317773,23.18209921,192.97,192.94,0.03]
[1755458317962,3.94746287,192.95,192.94,0.03]
[1755458318376,4.60746287,192.95,192.94,0.03]
[1755458318859,9.79015268,192.95,192.94,0.03]
[1755458322057,5.84268981,192.95,192.94,0.03]
[1755458322260,15.10621557,192.94,192.92,0.03]
[1755458322564,15.10621557,192.94,192.91,0.03]
[1755458322565,195.74,192.93,192.91,0.03]
[1755458322762,3.94746287,192.92,192.91,0.03]
[1755458322958,4.60746287,192.92,192.91,0.03]
[1755458323168,147.60621557,192.91,192.89,0.03]
[1755458323374,46.37149604,192.9,192.89,0.03]
[1755458323574,47.03149604,192.9,192.89,0.03]
[1755458325371,147.60621557,192.89,192.85,0.03]
[1755458325570,147.60621557,192.89,192.71,4.24452531]
[1755458325571,3.94746287,192.86,192.76,0.41]
[1755458325798,3.94746287,192.81,192.76,0.41]
[1755458325995,41.16746287,192.82,192.76,4.35746287]
[1755458326177,37.22,192.83,192.79,3.94746287]
[1755458326497,37.22,192.83,192.79,4.35746287]
[1755458326655,37.22,192.83,192.79,0.41]
[1755458327068,5.186184,192.82,192.78,3.94746287]
[1755458327493,5.186184,192.82,192.77,0.41]
[1755458327876,5.186184,192.82,192.78,4.35746287]
[1755458328178,5.186184,192.82,192.78,0.41]
[1755458328364,5.186184,192.82,192.78,4.35746287]
[1755458328571,5.186184,192.82,192.78,0.41]
[1755458328779,5.186184,192.82,192.78,4.35746287]
[1755458328997,12.49825869,192.82,192.76,26.41]
[1755458329295,8.55079582,192.82,192.77,3.94746287]
[1755458329460,12.49825869,192.82,192.77,3.94746287]
[1755458330066,12.49825869,192.82,192.76,0.41]
[1755458330291,12.49825869,192.82,192.77,3.94746287]
[1755458331483,5.84645298,192.81,192.77,3.94746287]
[1755458332070,5.18645298,192.81,192.76,0.41]
[1755458332265,5.18645298,192.81,192.77,3.94746287]
[1755458332465,5.84645298,192.81,192.75,26.0]
[1755458332671,5.84645298,192.81,192.77,3.94746287]
[1755458333771,5.84645298,192.81,192.75,0.41]
[1755458333772,9.79391585,192.81,192.76,3.94746287]
[1755458333969,15.10621557,192.8,192.67,5.19022162]
[1755458334174,5.18645298,192.81,192.78,3.94746287]
[1755458334409,5.18645298,192.81,192.79,4.35746287]
[1755458334932,5.18645298,192.81,192.79,3.94746287]
[1755458335114,5.18645298,192.81,192.77,0.41]
[1755458335115,5.18645298,192.81,192.8,3.94746287]
[1755458336383,2.70461182,192.82,192.8,0.41]
[1755458336589,2.70461182,192.82,192.81,3.94746287]
[1755458336898,5.18543679,192.85,192.81,4.35746287]
[1755458337112,7.88916901,192.87,192.84,3.94746287]
[1755458337319,7.88916901,192.87,192.86,3.94746287]
[1755458337494,7.88892956,192.87,192.86,4.35746287]
[1755458338007,7.88892956,192.87,192.85,3.94746287]
[1755458338203,7.88892956,192.87,192.86,3.94746287]
[1755458338405,8.54892956,192.87,192.82,0.41]
[1755458338636,8.54892956,192.87,192.84,3.94746287]
[1755458338790,7.88892956,192.87,192.84,3.94746287]
[1755458339131,2.70409004,192.87,192.86,3.94746287]
[1755458339505,2.70409004,192.87,192.86,4.35746287]
[1755458340932,2.70409004,192.87,192.86,9.54257123]
[1755458341090,5.18332318,192.93,192.86,9.54257123]
[1755458341427,0.66,192.94,192.91,3.94746287]
[1755458341635,5.18268981,192.95,192.91,3.94746287]
[1755458341847,0.66,192.94,192.9,3.94746287]
[1755458341993,0.66,192.93,192.9,3.94746287]
[1755458342723,0.66,192.92,192.89,3.94746287]
[1755458342928,3.94746287,192.94,192.88,3.94746287]
[1755458343230,0.66,192.91,192.86,3.94746287]
[1755458343430,0.66,192.9,192.87,3.94746287]
[1755458343585,0.66,192.89,192.83,63.22]
[1755458343810,4.60746287,192.89,192.84,3.94746287]
[1755458344157,0.66,192.88,192.85,3.94746287]
[1755458344956,5.18483952,192.87,192.85,3.94746287]
[1755458345449,5.18458669,192.88,192.83,63.66]
[1755458345630,5.18458669,192.88,192.85,3.94746287]
[1755458345958,5.18458669,192.88,192.83,63.66]
[1755458346154,0.66,192.87,192.85,3.94746287]
[1755458346328,5.18458669,192.88,192.85,3.94746287]
[1755458346649,5.18458669,192.88,192.84,3.94746287]
[1755458346818,5.18510836,192.86,192.83,0.03]
[1755458347343,0.66,192.85,192.83,0.03]
[1755458347712,0.66,192.84,192.83,0.03]
[1755458347913,5.84510836,192.86,192.83,0.03]
[1755458348114,5.18510836,192.86,192.83,3.97746287]
[1755458348431,137.68481738,192.88,192.85,3.94746287]
[1755458348632,137.68481738,192.88,192.87,3.94746287]
[1755458349431,137.68481738,192.88,192.86,3.94746287]
[1755458351234,132.5,192.88,192.86,3.94746287]
[1755458351926,132.5,192.88,192.87,3.94746287]
[1755458352241,2.70382969,192.89,192.87,3.94746287]
[1755458352431,2.70382969,192.89,192.88,3.94746287]
[1755458353226,2.70382969,192.89,192.84,5.59562315]
[1755458353227,8.54813162,192.89,192.87,3.94746287]
[1755458353425,2.70382969,192.89,192.87,3.94746287]
[1755458353643,2.70382969,192.89,192.88,3.94746287]
[1755458354447,7.88813162,192.89,192.88,3.94746287]
[1755458354752,8.58813162,192.89,192.87,3.94746287]
[1755458355162,0.7,192.88,192.87,3.94746287]
[1755458355458,0.7,192.88,192.86,3.94746287]
[1755458355764,0.7,192.87,192.86,3.94746287]
[1755458356347,5.88481801,192.88,192.86,3.94746287]
[1755458356557,0.7,192.87,192.84,3.94746287]
[1755458356876,0.7,192.86,192.83,3.97746287]
[1755458357436,18.1462448,192.88,192.83,0.03]
[1755458357671,18.1462448,192.88,192.83,3.97746287]
[1755458357837,0.7,192.87,192.85,3.94746287]
[1755458358163,5.18481801,192.88,192.85,3.94746287]
[1755458358972,11.35508879,192.89,192.86,3.94746287]
[1755458359153,11.35508879,192.89,192.87,3.94746287]
[1755458359346,7.88818026,192.89,192.87,3.94746287]
[1755458360665,7.94818026,192.89,192.87,3.94746287]
[1755458361567,0.7,192.88,192.86,3.94746287]
[1755458361757,7.94818026,192.89,192.86,3.94746287]
[1755458361958,0.7,192.87,192.86,3.94746287]
[1755458362556,7.94818026,192.89,192.86,3.94746287]
[1755458362757,5.18483952,192.87,192.86,3.94746287]
[1755458362968,5.18483952,192.87,192.83,0.03]
[1755458363168,5.18483952,192.87,192.86,3.94746287]
[1755458364446,5.18483952,192.87,192.83,0.03]
[1755458364650,5.88483952,192.87,192.84,3.94746287]
[1755458365057,0.7,192.86,192.83,0.03]
[1755458365351,4.64746287,192.86,192.83,0.03]
[1755458365749,3.94746287,192.86,192.83,0.03]
[1755458366081,4.64746287,192.85,192.83,0.03]
[1755458366442,0.7,192.84,192.83,0.03]
[1755458366648,5.88564613,192.84,192.83,0.03]
[1755458367276,9.833109,192.84,192.83,0.03]
[1755458376170,46.973109,192.84,192.83,0.03]
[1755458376764,50.44600481,192.84,192.83,0.03]
[1755458377783,50.50600481,192.84,192.83,0.03]
[1755458378172,46.55854194,192.84,192.83,0.03]
[1755458378362,50.50600481,192.84,192.83,0.03]
[1755458379562,45.85854194,192.84,192.83,0.03]
[1755458379995,42.38564613,192.84,192.83,0.03]
[1755458380185,42.38564613,192.84,192.83,3.91893209]
[1755458380366,0.06,192.84,192.83,7.86639496]
[1755458380573,0.06,192.84,192.83,8.27639496]
[1755458386969,0.76,192.84,192.83,3.91893209]
[1755458387164,4.70746287,192.84,192.83,3.91893209]
[1755458387586,7.4120359,192.84,192.83,3.91893209]
[1755458388894,12.59768203,192.84,192.83,3.91893209]
[1755458389079,19.93460724,192.84,192.83,3.91893209]
[1755458389489,15.10621557,192.83,192.81,0.03]
[1755458389672,7.42169997,192.82,192.81,0.03]
[1755458389997,8.12169997,192.82,192.81,0.03]
[1755458390192,4.64746287,192.82,192.81,0.03]
[1755458390975,9.83364687,192.82,192.81,0.03]
[1755458391500,5.886184,192.82,192.81,0.03]
[1755458392697,5.186184,192.82,192.81,0.03]
[1755458393073,5.18591505,192.83,192.81,0.03]
[1755458393474,5.88591505,192.83,192.81,0.03]
[1755458395801,5.18591505,192.83,192.81,0.03]
[1755458396293,5.88591505,192.83,192.81,0.03]
[1755458397700,5.88591505,192.83,192.81,3.97746287]
[1755458398489,0.7,192.82,192.81,0.03]
[1755458398981,5.18591505,192.83,192.81,3.97746287]
[1755458399186,5.18591505,192.83,192.82,3.94746287]
[1755458399896,0.06,192.84,192.82,4.35746287]
[1755458400103,0.06,192.84,192.83,3.94746287]
[1755458400481,0.76,192.84,192.82,3.94746287]
[1755458401802,0.76,192.84,192.81,0.03]
[1755458401803,5.18591505,192.83,192.81,0.03]
[1755458401983,0.06,192.84,192.82,3.94746287]
[1755458402185,0.06,192.84,192.83,3.94746287]
[1755458404115,0.76,192.84,192.83,3.94746287]
[1755458404290,0.06,192.84,192.83,3.94746287]
[1755458407380,0.06,192.84,192.83,4.35746287]
[1755458407575,0.06,192.84,192.83,9.54337792]
[1755458407993,0.06,192.84,192.83,4.35746287]
[1755458410104,0.06,192.84,192.83,3.94746287]
[1755458410700,0.06,192.84,192.81,0.03]
[1755458410907,0.06,192.84,192.83,3.94746287]
[1755458411485,0.76,192.84,192.83,3.94746287]
[1755458412015,5.94564613,192.84,192.83,3.94746287]
[1755458412187,5.94564613,192.84,192.83,3.97746287]
[1755458412985,5.24564613,192.84,192.83,3.97746287]
[1755458414114,0.06,192.84,192.83,3.97746287]
[1755458414699,0.72,192.84,192.83,3.97746287]
[1755458415815,5.90564613,192.84,192.83,3.97746287]
[1755458416617,0.06,192.84,192.83,3.97746287]
[1755458417320,0.06,192.84,192.83,4.38746287]
[1755458417612,0.06,192.84,192.83,3.97746287]
[1755458420815,0.06,192.84,192.83,9.16337792]
[1755458421022,0.06,192.84,192.83,9.57337792]
[1755458421404,0.06,192.84,192.83,13.52084079]
[1755458421605,2.76439871,192.86,192.83,13.52084079]
[1755458421606,0.06,192.86,192.85,26.0]
[1755458421808,0.06,192.86,192.85,45.05367844]
[1755458422012,0.06,192.88,192.87,5.18483952]
[1755458422212,0.06,192.88,192.87,9.13230239]
[1755458422601,0.06,192.88,192.87,9.54230239]
[1755458423195,0.06,192.88,192.87,29.94746287]
[1755458424824,0.72,192.88,192.87,29.94746287]
[1755458425522,0.06,192.88,192.87,29.94746287]
[1755458425723,0.72,192.88,192.87,29.94746287]
[1755458426303,0.06,192.88,192.87,29.94746287]
[1755458427018,0.06,192.88,192.87,30.35746287]
[1755458427623,0.06,192.88,192.87,9.54230239]
[1755458427921,0.06,192.89,192.88,41.10621557]
[1755458428119,0.06,192.89,192.88,45.46367844]
[1755458428327,0.06,192.89,192.88,49.71168647]
[1755458428696,0.06,192.9,192.88,49.71168647]
[1755458428697,0.06,192.9,192.88,54.89625718]
[1755458428922,0.06,192.9,192.89,41.41746287]
[1755458429926,0.06,192.9,192.89,46.6017648]
[1755458431008,0.06,192.9,192.89,46.1917648]
[1755458433713,0.06,192.9,192.89,41.00746287]
[1755458433925,0.72,192.9,192.88,26.0]
[1755458434106,0.06,192.9,192.89,40.98746287]
[1755458434750,0.72,192.9,192.89,40.98746287]
[1755458436031,0.06,192.9,192.89,40.98746287]
[1755458436414,0.72,192.9,192.89,40.98746287]
[1755458438934,5.90403317,192.9,192.89,40.98746287]
[1755458439141,5.90403317,192.9,192.89,37.04]
[1755458439835,5.90403317,192.9,192.88,3.94746287]
[1755458440017,5.24403317,192.9,192.87,40.96746287]
[1755458440338,0.66,192.89,192.87,40.96746287]
[1755458440838,5.18457071,192.88,192.87,37.02]
[1755458441013,5.18457071,192.88,192.85,3.97746287]
[1755458441014,5.84457071,192.88,192.85,0.03]
[1755458441335,0.66,192.87,192.85,0.03]
[1755458441535,0.66,192.88,192.86,37.02]
[1755458442532,5.18437163,192.89,192.87,3.94746287]
[1755458442736,0.06,192.9,192.87,3.94746287]
[1755458443034,0.66,192.89,192.87,3.94746287]
[1755458443623,4.60746287,192.89,192.85,0.03]
[1755458443935,3.94746287,192.88,192.85,0.03]
[1755458444124,4.60746287,192.88,192.85,0.03]
[1755458444323,0.66,192.87,192.85,0.03]
[1755458444639,5.18510836,192.86,192.85,0.03]
[1755458445144,5.87510836,192.86,192.85,0.03]
[1755458445732,5.87510836,192.86,192.85,3.97746287]
[1755458445935,0.69,192.88,192.85,3.97746287]
[1755458446136,0.69,192.87,192.86,3.94746287]
[1755458446338,0.69,192.87,192.85,3.97746287]
[1755458446714,5.18430193,192.89,192.86,3.94746287]
[1755458446715,5.87430193,192.89,192.86,3.94746287]
[1755458446920,0.69,192.88,192.86,3.94746287]
[1755458447318,0.69,192.88,192.87,3.94746287]
[1755458448049,0.69,192.88,192.85,3.97746287]
[1755458449130,5.18483952,192.87,192.85,3.97746287]
[1755458449330,5.87483952,192.87,192.85,3.97746287]
[1755458449530,0.69,192.89,192.86,3.94746287]
[1755458449729,5.24411454,192.9,192.88,3.94746287]
[1755458449730,0.06,192.9,192.88,3.94746287]
[1755458450055,0.06,192.9,192.89,3.94746287]
[1755458450056,5.24403317,192.9,192.89,3.94746287]
[1755458450634,0.06,192.9,192.89,3.94746287]
[1755458450829,0.75,192.9,192.89,3.94746287]
[1755458452647,0.06,192.9,192.89,3.94746287]
[1755458453624,9.88149604,192.9,192.85,3.97746287]
[1755458453847,0.69,192.89,192.85,3.97746287]
[1755458454245,5.18457071,192.88,192.86,3.94746287]
[1755458454446,0.69,192.87,192.86,3.94746287]
[1755458455952,0.06,192.9,192.88,26.0]
[1755458456154,0.06,192.9,192.89,72.1517648]
[1755458456649,0.06,192.9,192.89,72.5617648]
[1755458457558,0.06,192.9,192.89,87.66798037]
[1755458457733,0.06,192.92,192.9,15.10621557]
[1755458457938,0.06,192.92,192.91,45.05367844]
[1755458458323,0.06,192.92,192.91,50.23744288]
[1755458459466,0.06,192.92,192.91,50.64744288]
[1755458459846,0.06,192.92,192.91,50.23744288]
[1755458460932,0.06,192.92,192.91,29.94746287]
[1755458461144,0.75,192.92,192.91,66.94746287]
[1755458461663,0.06,192.92,192.91,66.94746287]
[1755458462745,0.06,192.92,192.91,87.23744288]
[1755458463061,0.06,192.92,192.91,87.64744288]
[1755458463550,0.06,192.92,192.91,29.94746287]
[1755458463892,0.75,192.92,192.91,66.94746287]
[1755458464547,0.75,192.92,192.91,87.23744288]
[1755458464548,0.06,192.92,192.91,87.23744288]
[1755458464753,0.06,192.92,192.91,87.64744288]
[1755458465085,0.06,192.92,192.91,29.94746287]
[1755458465369,0.06,192.92,192.91,41.35746287]
[1755458465538,0.06,192.92,192.91,56.46367844]
[1755458465744,0.06,192.92,192.91,56.98205488]
[1755458466850,0.06,192.92,192.91,62.16581932]
[1755458467553,0.06,192.92,192.91,61.64744288]
[1755458469655,0.06,192.93,192.92,15.10621557]
[1755458469881,0.06,192.93,192.92,19.57202801]
[1755458470245,0.06,192.94,192.92,22.05741601]
[1755458470450,0.06,192.94,192.93,56.03367844]
[1755458471251,0.06,192.94,192.93,61.21690551]
[1755458472882,0.06,192.94,192.93,9.13068994]
[1755458473066,0.75,192.94,192.93,36.98]
[1755458473261,0.75,192.94,192.93,40.92746287]
[1755458473759,0.06,192.94,192.93,40.92746287]
[1755458476482,0.06,192.94,192.93,61.62690551]
[1755458477077,0.06,192.94,192.93,61.21690551]
[1755458479756,0.06,192.94,192.93,61.62690551]
[1755458479959,0.06,192.94,192.93,62.14522821]
[1755458480374,0.06,192.94,192.93,64.22072421]
[1755458482300,0.06,192.94,192.93,63.29240151]
[1755458482485,0.76,192.94,192.93,61.21690551]
[1755458483676,0.06,192.94,192.93,61.21690551]
[1755458485865,0.76,192.94,192.93,61.21690551]
[1755458487700,0.76,192.94,192.93,57.26944264]
[1755458487905,0.76,192.94,192.93,66.90746287]
[1755458488101,0.76,192.94,192.93,40.90746287]
[1755458488611,2.76,192.94,192.93,40.90746287]
[1755458490310,2.06,192.94,192.93,40.90746287]
[1755458490810,2.06,192.94,192.93,46.09068994]
[1755458493310,2.06,192.94,192.93,40.90746287]
[1755458493511,2.76,192.94,192.93,40.90746287]
[1755458494303,2.76,192.94,192.93,40.93746287]
[1755458496312,2.76,192.94,192.93,36.99]
[1755458496518,2.76,192.94,192.93,40.93746287]
[1755458498409,2.76,192.94,192.93,3.97746287]
[1755458498592,7.94295843,192.94,192.93,0.03]
[1755458500300,15.35870663,192.94,192.93,0.03]
[1755458500494,19.22087236,192.94,192.93,0.03]
[1755458500800,46.51774016,192.94,192.89,0.03]
[1755458501003,3.94746287,192.9,192.87,0.03]
[1755458501232,3.94746287,192.88,192.87,0.03]